[Event "Fagernes Chess GM-Swiss 2025"]
[Site "Fagernes"]
[Date "2025.04.13"]
[Round "1.16"]
[White "Torfoss, Sivert Schanche"]
[Black "Urazayev, Arystanbek"]
[Result "0-1"]
[Annotator "ChessBase"]
[ECO "A49"]
[WhiteElo "2141"]
[BlackElo "2467"]
[PlyCount "61"]
[EventDate "2025.04.12"]
[EventCountry "NOR"]
[SourceTitle "playchess.com"]
[Source "ChessBase"]
[SourceQuality "1"]
[TimeControl "40/6000+30:2400+30"]

1. Nf3 {[%emt 0:00:30]} Nf6 {[%emt 0:00:05]} 2. d4 {[%emt 0:00:26]} g6 {[%emt 0:00:27]} 3. g3 {[%emt 0:00:08]} Bg7 {[%emt 0:00:05]} 4. Bg2 {[%emt 0:00:04]} O-O {[%emt 0:00:12]} 5. O-O {[%emt 0:00:04]} d6 {[%emt 0:01:55]} 6. b3 {[%emt 0:00:13]} e5 {[%emt 0:01:05]} 7. dxe5 {[%emt 0:00:34]} dxe5 {[%emt 0:00:12]} 8. Ba3 {[%emt 0:01:43]} e4 {[%emt 0:00:13]} 9. Bxf8 {[%emt 0:06:09]} Qxf8 {[%emt 0:01:01]} 10. Nd4 {[%emt 0:03:23]} e3 {[%emt 0:00:12]} 11. f3 {[%emt 0:04:34]} Nd5 {[%emt 0:04:52]} 12. c4 {[%emt 0:13:50]} c5 {[%emt 0:25:01]} 13. Nc2 {[%emt 0:02:59]} Nb4 {[%emt 0:10:43]} 14. Nba3 {[%emt 0:00:39]} N8c6 {[%emt 0:07:20]} 15. Nxb4 {[%emt 0:07:50]} Nxb4 {[%emt 0:02:05]} 16. Nb5 {[%emt 0:07:28]} Bf5 {[%emt 0:07:29]} 17. Qd6 {[%emt 0:19:51]} Bxa1 {[%emt 0:03:44]} 18. Rxa1 {[%emt 0:15:37]} Rd8 {[%emt 0:00:06]} 19. Qxf8+ {[%emt 0:05:48]} Kxf8 {[%emt 0:00:08]} 20. Nc3 {[%emt 0:01:13]} Rd2 {[%emt 0:01:55]} 21. g4 {[%emt 0:06:21]} Be6 {[%emt 0:04:40]} 22. Bf1 {[%emt 0:00:12]} f5 {[%emt 0:06:38]} 23. gxf5 {[%emt 0:00:09]} Bxf5 {[%emt 0:00:27]} 24. a3 {[%emt 0:04:25]} Nc2 {[%emt 0:01:37]} 25. Rc1 {[%emt 0:00:59]} Nd4 {[%emt 0:03:32]} 26. b4 {[%emt 0:01:30]} Bd3 {[%emt 0:03:32]} 27. bxc5 {[%emt 0:04:14]} Bxe2 {[%emt 0:01:24]} 28. Nxe2 {[%emt 0:02:42]} Rxe2 {[%emt 0:01:27]} 29. Bg2 {[%emt 0:00:10]} Rd2 {[%emt 0:05:38]} 30. Rb1 {[%emt 0:01:08]} e2 {[%emt 0:02:33]} 31. Bf1 {[%emt 0:00:07]} 0-1

[Event "Fagernes Chess GM-Swiss 2025"]
[Site "Fagernes"]
[Date "2025.04.13"]
[Round "1.17"]
[White "Hillarp Persson, Tiger"]
[Black "Khoo-Thwe, Louis"]
[Result "1-0"]
[Annotator "ChessBase"]
[ECO "D02"]
[WhiteElo "2462"]
[BlackElo "2118"]
[PlyCount "79"]
[EventDate "2025.04.12"]
[EventCountry "NOR"]
[SourceTitle "playchess.com"]
[Source "ChessBase"]
[SourceQuality "1"]
[TimeControl "40/6000+30:2400+30"]

1. Nf3 {[%emt 0:00:03]} d5 {[%emt 0:00:11]} 2. g3 {[%emt 0:00:09]} Nc6 {[%emt 0:00:07]} 3. d4 {[%emt 0:00:06]} Bf5 {[%emt 0:00:07]} 4. c4 {[%emt 0:00:09]} e6 {[%emt 0:00:42]} 5. Bg2 {[%emt 0:00:23]} Nb4 {[%emt 0:01:55]} 6. O-O {[%emt 0:00:09]} Nc2 {[%emt 0:05:08]} 7. cxd5 {[%emt 0:01:42]} Nxa1 {[%emt 0:01:15]} 8. dxe6 {[%emt 0:01:34]} Bxe6 {[%emt 0:03:55]} 9. Nc3 {[%emt 0:00:25]} c6 {[%emt 0:05:41]} 10. e4 {[%emt 0:01:38]} Nf6 {[%emt 0:01:51]} 11. Be3 {[%emt 0:32:27]} Bb4 {[%emt 0:04:08]} 12. Qd3 {[%emt 0:00:49]} Bxc3 {[%emt 0:12:10]} 13. bxc3 {[%emt 0:00:45]} O-O {[%emt 0:05:00]} 14. Rxa1 {[%emt 0:02:29]} Qa5 {[%emt 0:01:43]} 15. e5 {[%emt 0:01:40]} Nd5 {[%emt 0:03:20]} 16. Ng5 {[%emt 0:01:33]} g6 {[%emt 0:00:50]} 17. Nxe6 {[%emt 0:03:05]} fxe6 {[%emt 0:00:44]} 18. Bd2 {[%emt 0:00:16]} Qa3 {[%emt 0:04:35]} 19. h4 {[%emt 0:13:25]} b5 {[%emt 0:08:04]} 20. Qc2 {[%emt 0:02:32]} Qe7 {[%emt 0:14:54]} 21. a4 {[%emt 0:06:10]} Qf7 {[%emt 0:02:59]} 22. Bh6 {[%emt 0:02:41]} Rfc8 {[%emt 0:00:50]} 23. axb5 {[%emt 0:11:46]} cxb5 {[%emt 0:01:25]} 24. Bxd5 {[%emt 0:00:42]} exd5 {[%emt 0:00:06]} 25. Ra6 {[%emt 0:00:20]} b4 {[%emt 0:08:54]} 26. Rf6 {[%emt 0:00:51]} Rxc3 {[%emt 0:02:59]} 27. Qb1 {[%emt 0:09:22]} Qb7 {[%emt 0:04:33]} 28. h5 {[%emt 0:03:39]} b3 {[%emt 0:07:25]} 29. hxg6 {[%emt 0:00:13]} Rc2 {[%emt 0:05:26]} 30. g7 {[%emt 0:04:25]} Rcc8 {[%emt 0:00:53]} 31. Qf5 {[%emt 0:00:11]} Qe7 {[%emt 0:00:56]} 32. Qf3 {[%emt 0:00:15]} Rd8 {[%emt 0:01:26]} 33. Qxb3 {[%emt 0:00:16]} a5 {[%emt 0:00:56]} 34. Qf3 {[%emt 0:06:05]} a4 {[%emt 0:01:02]} 35. Qf5 {[%emt 0:01:54]} a3 {[%emt 0:00:34]} 36. Qg5 {[%emt 0:00:06]} Qxf6 {[%emt 0:00:59]} 37. Qxf6 {[%emt 0:00:09]} Re8 {[%emt 0:00:15]} 38. e6 {[%emt 0:00:08]} Ra7 {[%emt 0:00:19]} 39. Qf8+ {[%emt 0:00:08]} Rxf8 {[%emt 0:00:07]} 40. gxf8=Q# {[%emt 0:00:16]} 1-0

[Event "Fagernes Chess GM-Swiss 2025"]
[Site "Fagernes"]
[Date "2025.04.13"]
[Round "1.19"]
[White "Mitusov, Semen"]
[Black "Arvola, Daniel"]
[Result "1-0"]
[Annotator "ChessBase"]
[ECO "B90"]
[WhiteElo "2459"]
[BlackElo "2088"]
[PlyCount "77"]
[EventDate "2025.04.12"]
[EventCountry "NOR"]
[SourceTitle "playchess.com"]
[Source "ChessBase"]
[SourceQuality "1"]
[TimeControl "40/6000+30:2400+30"]

1. e4 {[%emt 0:00:04]} c5 {[%emt 0:00:10]} 2. Nf3 {[%emt 0:00:11]} d6 {[%emt 0:00:12]} 3. d4 {[%emt 0:00:53]} cxd4 {[%emt 0:00:07]} 4. Nxd4 {[%emt 0:01:07]} Nf6 {[%emt 0:00:11]} 5. Nc3 {[%emt 0:00:04]} a6 {[%emt 0:00:08]} 6. h3 {[%emt 0:04:24]} e5 {[%emt 0:01:53]} 7. Nf3 {[%emt 0:00:09]} Be6 {[%emt 0:06:54]} 8. Ng5 {[%emt 0:04:35]} Be7 {[%emt 0:01:58]} 9. Nxe6 {[%emt 0:00:47]} fxe6 {[%emt 0:00:08]} 10. Bc4 {[%emt 0:00:10]} Qc8 {[%emt 0:05:27]} 11. Bb3 {[%emt 0:08:50]} b5 {[%emt 0:08:42]} 12. a3 {[%emt 0:02:36]} Nc6 {[%emt 0:09:16]} 13. O-O {[%emt 0:00:18]} O-O {[%emt 0:01:41]} 14. Ba2 {[%emt 0:01:50]} Kh8 {[%emt 0:07:49]} 15. Re1 {[%emt 0:06:51]} Qd7 {[%emt 0:06:32]} 16. Be3 {[%emt 0:19:29]} Rac8 {[%emt 0:05:45]} 17. Qe2 {[%emt 0:07:34]} Na5 {[%emt 0:06:17]} 18. Rad1 {[%emt 0:08:41]} Nc4 {[%emt 0:09:25]} 19. Bxc4 {[%emt 0:00:28]} Rxc4 {[%emt 0:00:22]} 20. Bg5 {[%emt 0:04:03]} Qc6 {[%emt 0:03:05]} 21. Rd3 {[%emt 0:16:06]} b4 {[%emt 0:04:03]} 22. axb4 {[%emt 0:00:37]} Rxb4 {[%emt 0:00:31]} 23. b3 {[%emt 0:01:13]} Rd4 {[%emt 0:06:27]} 24. Rf3 {[%emt 0:03:21]} Rc8 {[%emt 0:01:52]} 25. Ra1 {[%emt 0:07:50]} Nxe4 {[%emt 0:09:37]} 26. Bxe7 {[%emt 0:00:57]} Nxc3 {[%emt 0:00:08]} 27. Qxa6 {[%emt 0:00:19]} Qd7 {[%emt 0:05:15]} 28. Qa7 {[%emt 0:03:44]} Qxa7 {[%emt 0:06:00]} 29. Rxa7 {[%emt 0:00:01]} Ne2+ {[%emt 0:00:34]} 30. Kh2 {[%emt 0:00:01]} Nf4 {[%emt 0:00:14]} 31. g3 {[%emt 0:02:33]} Ng6 {[%emt 0:00:49]} 32. Rf7 {[%emt 0:01:22]} e4 {[%emt 0:02:41]} 33. Bg5 {[%emt 0:01:26]} Ne5 {[%emt 0:01:50]} 34. Rxg7 {[%emt 0:02:54]} Rd1 {[%emt 0:00:33]} 35. Rxh7+ {[%emt 0:01:01]} Kg8 {[%emt 0:00:06]} 36. Rag7+ {[%emt 0:00:15]} Kf8 {[%emt 0:00:07]} 37. Be7+ {[%emt 0:00:05]} Ke8 {[%emt 0:00:08]} 38. Rh8+ {[%emt 0:00:13]} Kd7 {[%emt 0:00:08]} 39. Bf6+ {[%emt 0:00:03]} 1-0

[Event "Fagernes Chess GM-Swiss 2025"]
[Site "Fagernes"]
[Date "2025.04.13"]
[Round "1.20"]
[White "Holand, Per Fredrik"]
[Black "Dotzer, Lukas"]
[Result "0-1"]
[Annotator "ChessBase"]
[ECO "D00"]
[WhiteElo "2070"]
[BlackElo "2453"]
[PlyCount "46"]
[EventDate "2025.04.12"]
[EventCountry "NOR"]
[SourceTitle "playchess.com"]
[Source "ChessBase"]
[SourceQuality "1"]
[TimeControl "40/6000+30:2400+30"]

1. d4 {[%emt 0:00:03]} Nf6 {[%emt 0:00:04]} 2. Nc3 {[%emt 0:00:09]} d5 {[%emt 0:00:04]} 3. Bf4 {[%emt 0:00:07]} a6 {[%emt 0:00:04]} 4. e3 {[%emt 0:00:09]} Bf5 {[%emt 0:00:19]} 5. Nf3 {[%emt 0:00:09]} e6 {[%emt 0:00:49]} 6. Ne5 {[%emt 0:00:08]} Nfd7 {[%emt 0:06:53]} 7. g4 {[%emt 0:02:10]} Bg6 {[%emt 0:00:13]} 8. Nxg6 {[%emt 0:02:24]} hxg6 {[%emt 0:00:07]} 9. Qf3 {[%emt 0:03:35]} c5 {[%emt 0:13:27]} 10. dxc5 {[%emt 0:03:24]} Nc6 {[%emt 0:07:52]} 11. O-O-O {[%emt 0:02:15]} Bxc5 {[%emt 0:04:50]} 12. h4 {[%emt 0:23:35]} Rxh4 {[%emt 0:10:55]} 13. Rxh4 {[%emt 0:00:40]} Qxh4 {[%emt 0:00:05]} 14. g5 {[%emt 0:00:15]} Nde5 {[%emt 0:02:35]} 15. Qg2 {[%emt 0:02:31]} O-O-O {[%emt 0:10:53]} 16. Be2 {[%emt 0:02:14]} Qh8 {[%emt 0:01:07]} 17. Qg3 {[%emt 0:02:08]} f6 {[%emt 0:05:19]} 18. e4 {[%emt 0:11:35]} d4 {[%emt 0:07:53]} 19. Na4 {[%emt 0:00:08]} Ba7 {[%emt 0:05:54]} 20. Qb3 {[%emt 0:00:59]} b5 {[%emt 0:08:44]} 21. Bg3 {[%emt 0:31:27]} Kc7 {[%emt 0:04:48]} 22. f4 {[%emt 0:02:25]} bxa4 {[%emt 0:00:27]} 23. Qxe6 {[%emt 0:05:41]} Rd6 {[%emt 0:00:26]} 0-1

[Event "Fagernes Chess GM-Swiss 2025"]
[Site "Fagernes"]
[Date "2025.04.13"]
[Round "1.21"]
[White "Zhou, Yang-Fan"]
[Black "Berget, Eirik"]
[Result "1-0"]
[Annotator "ChessBase"]
[ECO "C02"]
[WhiteElo "2418"]
[BlackElo "2041"]
[PlyCount "95"]
[EventDate "2025.04.12"]
[EventCountry "NOR"]
[SourceTitle "playchess.com"]
[Source "ChessBase"]
[SourceQuality "1"]
[TimeControl "40/6000+30:2400+30"]

1. e4 {[%emt 0:02:25]} e6 {[%emt 0:00:37]} 2. d4 {[%emt 0:00:06]} d5 {[%emt 0:00:05]} 3. e5 {[%emt 0:00:03]} c5 {[%emt 0:00:21]} 4. c3 {[%emt 0:00:07]} Nc6 {[%emt 0:00:35]} 5. Nf3 {[%emt 0:00:09]} Nge7 {[%emt 0:00:37]} 6. Na3 {[%emt 0:00:15]} Nf5 {[%emt 0:01:00]} 7. Nc2 {[%emt 0:00:05]} Be7 {[%emt 0:01:14]} 8. Bd3 {[%emt 0:00:15]} O-O {[%emt 0:01:39]} 9. O-O {[%emt 0:00:24]} cxd4 {[%emt 0:03:45]} 10. Ncxd4 {[%emt 0:00:12]} Ncxd4 {[%emt 0:02:07]} 11. cxd4 {[%emt 0:01:59]} f6 {[%emt 0:03:47]} 12. Bxf5 {[%emt 0:07:56]} exf5 {[%emt 0:00:38]} 13. Bf4 {[%emt 0:00:32]} Bd7 {[%emt 0:09:31]} 14. Qb3 {[%emt 0:18:13]} Bc6 {[%emt 0:01:01]} 15. Rfe1 {[%emt 0:00:19]} Kh8 {[%emt 0:13:22]} 16. Rac1 {[%emt 0:07:06]} g5 {[%emt 0:05:33]} 17. exf6 {[%emt 0:01:22]} Bxf6 {[%emt 0:03:41]} 18. Be5 {[%emt 0:00:05]} g4 {[%emt 0:00:47]} 19. Bxf6+ {[%emt 0:03:49]} Qxf6 {[%emt 0:00:20]} 20. Ne5 {[%emt 0:00:10]} f4 {[%emt 0:04:32]} 21. Nxg4 {[%emt 0:26:26]} Qxd4 {[%emt 0:02:19]} 22. Ne5 {[%emt 0:06:38]} Rae8 {[%emt 0:06:21]} 23. Qa3 {[%emt 0:01:21]} Rg8 {[%emt 0:04:12]} 24. Qd6 {[%emt 0:08:07]} Ref8 {[%emt 0:05:20]} 25. Qh6 {[%emt 0:11:21]} Rf5 {[%emt 0:07:50]} 26. Nxc6 {[%emt 0:01:56]} bxc6 {[%emt 0:06:26]} 27. Re7 {[%emt 0:00:04]} Rg7 {[%emt 0:00:55]} 28. Re8+ {[%emt 0:00:02]} Rg8 {[%emt 0:00:18]} 29. Re7 {[%emt 0:00:03]} Rg7 {[%emt 0:00:18]} 30. Rxg7 {[%emt 0:00:04]} Qxg7 {[%emt 0:00:53]} 31. Qxg7+ {[%emt 0:00:04]} Kxg7 {[%emt 0:00:09]} 32. Rxc6 {[%emt 0:00:02]} d4 {[%emt 0:01:25]} 33. Kf1 {[%emt 0:01:55]} d3 {[%emt 0:00:51]} 34. Rd6 {[%emt 0:02:34]} Rc5 {[%emt 0:00:53]} 35. Rxd3 {[%emt 0:00:45]} Rc2 {[%emt 0:00:17]} 36. Rb3 {[%emt 0:01:44]} Kg6 {[%emt 0:00:12]} 37. g3 {[%emt 0:02:31]} Kf5 {[%emt 0:01:48]} 38. Rf3 {[%emt 0:01:43]} Rxb2 {[%emt 0:00:33]} 39. Rxf4+ {[%emt 0:00:03]} Kg5 {[%emt 0:00:22]} 40. h4+ {[%emt 0:02:44]} Kh5 {[%emt 0:00:15]} 41. Ra4 {[%emt 0:41:16]} Rb7 {[%emt 0:40:08]} 42. Ra6 {[%emt 0:00:55]} h6 {[%emt 0:00:19]} 43. Kg2 {[%emt 0:00:32]} Rg7 {[%emt 0:00:34]} 44. Rc6 {[%emt 0:03:26]} Rd7 {[%emt 0:00:25]} 45. Kh3 {[%emt 0:00:35]} Rd3 {[%emt 0:00:17]} 46. Rf6 {[%emt 0:00:22]} a5 {[%emt 0:00:50]} 47. f3 {[%emt 0:00:16]} a4 {[%emt 0:00:31]} 48. g4# {[%emt 0:00:06]} 1-0

[Event "Fagernes Chess GM-Swiss 2025"]
[Site "Fagernes"]
[Date "2025.04.13"]
[Round "1.22"]
[White "Simonsen, David Mindestrommen"]
[Black "Miezis, Normunds"]
[Result "0-1"]
[Annotator "ChessBase"]
[ECO "B40"]
[WhiteElo "2034"]
[BlackElo "2409"]
[PlyCount "86"]
[EventDate "2025.04.12"]
[EventCountry "NOR"]
[SourceTitle "playchess.com"]
[Source "ChessBase"]
[SourceQuality "1"]
[TimeControl "40/6000+30:2400+30"]

1. e4 {[%emt 0:00:04]} c5 {[%emt 0:00:20]} 2. Nf3 {[%emt 0:00:12]} e6 {[%emt 0:00:16]} 3. g3 {[%emt 0:00:19]} Nc6 {[%emt 0:01:26]} 4. Bg2 {[%emt 0:00:16]} Nf6 {[%emt 0:03:03]} 5. Nc3 {[%emt 0:00:48]} e5 {[%emt 0:02:06]} 6. d3 {[%emt 0:01:30]} h6 {[%emt 0:02:48]} 7. O-O {[%emt 0:00:52]} d6 {[%emt 0:00:30]} 8. Nd2 {[%emt 0:07:54]} Nd4 {[%emt 0:04:59]} 9. Nc4 {[%emt 0:07:34]} b5 {[%emt 0:13:48]} 10. Ne3 {[%emt 0:00:31]} h5 {[%emt 0:00:16]} 11. Ncd5 {[%emt 0:08:40]} Nxd5 {[%emt 0:04:33]} 12. Nxd5 {[%emt 0:05:36]} h4 {[%emt 0:03:44]} 13. c3 {[%emt 0:06:14]} Nc6 {[%emt 0:05:34]} 14. f4 {[%emt 0:14:31]} hxg3 {[%emt 0:04:31]} 15. hxg3 {[%emt 0:00:33]} Be6 {[%emt 0:06:13]} 16. f5 {[%emt 0:09:02]} Bxd5 {[%emt 0:00:38]} 17. exd5 {[%emt 0:00:05]} Nb8 {[%emt 0:00:43]} 18. a4 {[%emt 0:10:01]} b4 {[%emt 0:01:31]} 19. a5 {[%emt 0:00:32]} Nd7 {[%emt 0:01:13]} 20. Qa4 {[%emt 0:02:03]} Rb8 {[%emt 0:14:50]} 21. Be3 {[%emt 0:15:02]} Be7 {[%emt 0:05:46]} 22. Qc6 {[%emt 0:04:20]} O-O {[%emt 0:05:59]} 23. c4 {[%emt 0:01:31]} e4 {[%emt 0:07:00]} 24. d4 {[%emt 0:03:46]} Rc8 {[%emt 0:03:22]} 25. Qa6 {[%emt 0:00:27]} Bf6 {[%emt 0:05:23]} 26. dxc5 {[%emt 0:04:03]} Nxc5 {[%emt 0:05:16]} 27. Qxa7 {[%emt 0:02:23]} Bxb2 {[%emt 0:01:40]} 28. Ra2 {[%emt 0:00:17]} Ra8 {[%emt 0:01:09]} 29. Bxc5 {[%emt 0:01:28]} Rxa7 {[%emt 0:00:12]} 30. Bxa7 {[%emt 0:00:07]} Be5 {[%emt 0:00:48]} 31. f6 {[%emt 0:01:53]} b3 {[%emt 0:01:11]} 32. Re2 {[%emt 0:00:43]} Qxa5 {[%emt 0:00:19]} 33. Be3 {[%emt 0:00:09]} Qc3 {[%emt 0:01:41]} 34. Bxe4 {[%emt 0:01:06]} Qxc4 {[%emt 0:00:12]} 35. Bf3 {[%emt 0:00:05]} Bxf6 {[%emt 0:00:28]} 36. Rh2 {[%emt 0:01:24]} Re8 {[%emt 0:00:29]} 37. Kf2 {[%emt 0:00:35]} Rxe3 {[%emt 0:00:42]} 38. Rfh1 {[%emt 0:00:05]} Rxf3+ {[%emt 0:00:27]} 39. Kxf3 {[%emt 0:00:06]} g6 {[%emt 0:00:13]} 40. Re1 {[%emt 0:00:14]} Qxd5+ {[%emt 0:00:14]} 41. Kf2 {[%emt 0:40:19]} Bd4+ {[%emt 0:40:17]} 42. Kf1 {[%emt 0:00:08]} Qf3+ {[%emt 0:00:07]} 43. Rf2 {[%emt 0:00:06]} Qxf2# {[%emt 0:00:07]} 0-1

[Event "Fagernes Chess GM-Swiss 2025"]
[Site "Fagernes"]
[Date "2025.04.13"]
[Round "1.23"]
[White "Vestby-Ellingsen, Mads"]
[Black "Kaewpitakkun, Pantham"]
[Result "1/2-1/2"]
[Annotator "ChessBase"]
[ECO "B50"]
[WhiteElo "2398"]
[BlackElo "2026"]
[PlyCount "79"]
[EventDate "2025.04.12"]
[EventCountry "NOR"]
[SourceTitle "playchess.com"]
[Source "ChessBase"]
[SourceQuality "1"]
[TimeControl "40/6000+30:2400+30"]

1. e4 {[%emt 0:00:41]} c5 {[%emt 0:00:05]} 2. Nf3 {[%emt 0:00:15]} d6 {[%emt 0:00:13]} 3. c3 {[%emt 0:00:19]} Nf6 {[%emt 0:00:51]} 4. h3 {[%emt 0:00:20]} e6 {[%emt 0:01:21]} 5. Bd3 {[%emt 0:01:20]} Nc6 {[%emt 0:01:52]} 6. Bc2 {[%emt 0:00:34]} Bd7 {[%emt 0:01:22]} 7. O-O {[%emt 0:02:52]} Be7 {[%emt 0:01:06]} 8. Re1 {[%emt 0:01:15]} Rc8 {[%emt 0:06:56]} 9. d3 {[%emt 0:05:43]} O-O {[%emt 0:01:35]} 10. a3 {[%emt 0:03:00]} Qc7 {[%emt 0:03:38]} 11. Nbd2 {[%emt 0:01:18]} b5 {[%emt 0:04:08]} 12. Nf1 {[%emt 0:01:54]} a5 {[%emt 0:04:00]} 13. Ng3 {[%emt 0:00:54]} a4 {[%emt 0:03:42]} 14. Re2 {[%emt 0:09:22]} Rfe8 {[%emt 0:02:38]} 15. d4 {[%emt 0:02:45]} cxd4 {[%emt 0:04:52]} 16. cxd4 {[%emt 0:00:13]} Na5 {[%emt 0:02:17]} 17. Rb1 {[%emt 0:06:58]} h6 {[%emt 0:06:29]} 18. e5 {[%emt 0:09:22]} dxe5 {[%emt 0:03:33]} 19. Nxe5 {[%emt 0:05:01]} Bd6 {[%emt 0:12:48]} 20. Qd3 {[%emt 0:05:52]} Nc4 {[%emt 0:03:24]} 21. Ng4 {[%emt 0:26:09]} Nxg4 {[%emt 0:03:06]} 22. Qh7+ {[%emt 0:07:27]} Kf8 {[%emt 0:00:12]} 23. Nf5 {[%emt 0:02:38]} Bh2+ {[%emt 0:01:37]} 24. Kf1 {[%emt 0:00:24]} Nge3+ {[%emt 0:01:20]} 25. Nxe3 {[%emt 0:10:16]} Nxe3+ {[%emt 0:04:09]} 26. Bxe3 {[%emt 0:00:21]} Bf4 {[%emt 0:01:50]} 27. Qh8+ {[%emt 0:04:30]} Ke7 {[%emt 0:00:11]} 28. Qxg7 {[%emt 0:00:09]} Rg8 {[%emt 0:02:21]} 29. Bxf4 {[%emt 0:00:07]} Qxf4 {[%emt 0:03:51]} 30. Qe5 {[%emt 0:00:06]} Qxe5 {[%emt 0:00:30]} 31. dxe5 {[%emt 0:00:07]} b4 {[%emt 0:01:15]} 32. Kg1 {[%emt 0:03:35]} Bb5 {[%emt 0:06:02]} 33. Rd2 {[%emt 0:00:03]} Bc6 {[%emt 0:02:05]} 34. g3 {[%emt 0:00:46]} b3 {[%emt 0:01:26]} 35. Bh7 {[%emt 0:00:49]} Rh8 {[%emt 0:01:26]} 36. Bd3 {[%emt 0:00:08]} Rhd8 {[%emt 0:03:48]} 37. Rc1 {[%emt 0:00:34]} Bf3 {[%emt 0:02:12]} 38. Rxc8 {[%emt 0:00:37]} Rxc8 {[%emt 0:00:09]} 39. g4 {[%emt 0:00:36]} Rd8 {[%emt 0:06:10]} 40. Kf1 {[%emt 0:00:22]} 1/2-1/2

[Event "Fagernes Chess GM-Swiss 2025"]
[Site "Fagernes"]
[Date "2025.04.13"]
[Round "1.24"]
[White "Stromhaug, Kristoffer Wang"]
[Black "Johansson, Linus"]
[Result "0-1"]
[Annotator "ChessBase"]
[ECO "C07"]
[WhiteElo "2020"]
[BlackElo "2392"]
[PlyCount "70"]
[EventDate "2025.04.12"]
[EventCountry "NOR"]
[SourceTitle "playchess.com"]
[Source "ChessBase"]
[SourceQuality "1"]
[TimeControl "40/6000+30:2400+30"]

1. e4 {[%emt 0:00:04]} e6 {[%emt 0:00:04]} 2. d4 {[%emt 0:00:04]} d5 {[%emt 0:00:02]} 3. Nd2 {[%emt 0:00:09]} c5 {[%emt 0:00:04]} 4. exd5 {[%emt 0:00:17]} Qxd5 {[%emt 0:00:05]} 5. Ngf3 {[%emt 0:00:13]} cxd4 {[%emt 0:00:05]} 6. Bc4 {[%emt 0:00:17]} Qd6 {[%emt 0:00:05]} 7. O-O {[%emt 0:02:19]} Nf6 {[%emt 0:00:04]} 8. Nb3 {[%emt 0:00:48]} Nc6 {[%emt 0:00:06]} 9. Nbxd4 {[%emt 0:02:22]} Nxd4 {[%emt 0:00:06]} 10. Qxd4 {[%emt 0:06:41]} Qxd4 {[%emt 0:00:34]} 11. Nxd4 {[%emt 0:00:07]} Bc5 {[%emt 0:00:53]} 12. Nb3 {[%emt 0:02:10]} Bb6 {[%emt 0:00:08]} 13. Bb5+ {[%emt 0:06:13]} Bd7 {[%emt 0:00:13]} 14. Bxd7+ {[%emt 0:00:49]} Nxd7 {[%emt 0:00:17]} 15. Re1 {[%emt 0:02:07]} Ke7 {[%emt 0:00:57]} 16. Bf4 {[%emt 0:05:56]} Rhc8 {[%emt 0:01:21]} 17. c3 {[%emt 0:01:12]} Rc4 {[%emt 0:01:07]} 18. Bg3 {[%emt 0:01:53]} Ra4 {[%emt 0:03:23]} 19. Kf1 {[%emt 0:03:17]} g5 {[%emt 0:05:45]} 20. Nd2 {[%emt 0:12:32]} f5 {[%emt 0:07:58]} 21. b3 {[%emt 0:04:23]} Ra6 {[%emt 0:00:36]} 22. f4 {[%emt 0:01:55]} gxf4 {[%emt 0:15:33]} 23. Bxf4 {[%emt 0:00:51]} Rc8 {[%emt 0:00:08]} 24. Nc4 {[%emt 0:10:34]} Bc7 {[%emt 0:00:15]} 25. g3 {[%emt 0:07:55]} Bxf4 {[%emt 0:10:48]} 26. gxf4 {[%emt 0:00:07]} Nf6 {[%emt 0:00:17]} 27. Ne3 {[%emt 0:04:19]} Kf7 {[%emt 0:00:52]} 28. c4 {[%emt 0:06:49]} Rd8 {[%emt 0:00:55]} 29. Re2 {[%emt 0:07:37]} Rd4 {[%emt 0:02:20]} 30. Ng2 {[%emt 0:03:37]} Ne4 {[%emt 0:01:01]} 31. Rc1 {[%emt 0:01:03]} Nd2+ {[%emt 0:03:30]} 32. Kg1 {[%emt 0:02:05]} Rxa2 {[%emt 0:02:05]} 33. Ne1 {[%emt 0:00:49]} Rxf4 {[%emt 0:05:05]} 34. Kg2 {[%emt 0:00:52]} Rg4+ {[%emt 0:00:48]} 35. Kf2 {[%emt 0:00:55]} Re4 {[%emt 0:05:14]} 0-1

[Event "Fagernes Chess GM-Swiss 2025"]
[Site "Fagernes"]
[Date "2025.04.13"]
[Round "1.25"]
[White "Aradhya, Garg"]
[Black "Kittilsen, Sigurd"]
[Result "1-0"]
[Annotator "ChessBase"]
[ECO "D27"]
[WhiteElo "2387"]
[BlackElo "2010"]
[PlyCount "69"]
[EventDate "2025.04.12"]
[EventCountry "NOR"]
[SourceTitle "playchess.com"]
[Source "ChessBase"]
[SourceQuality "1"]
[TimeControl "40/6000+30:2400+30"]

1. d4 {[%emt 0:00:02]} d5 {[%emt 0:00:35]} 2. c4 {[%emt 0:00:02]} dxc4 {[%emt 0:00:27]} 3. Nf3 {[%emt 0:00:14]} a6 {[%emt 0:00:21]} 4. e3 {[%emt 0:00:11]} e6 {[%emt 0:00:42]} 5. Bxc4 {[%emt 0:00:03]} Nf6 {[%emt 0:00:26]} 6. O-O {[%emt 0:00:16]} c5 {[%emt 0:00:32]} 7. Nbd2 {[%emt 0:00:15]} cxd4 {[%emt 0:02:14]} 8. Nxd4 {[%emt 0:00:03]} Bc5 {[%emt 0:00:32]} 9. Bd3 {[%emt 0:02:37]} O-O {[%emt 0:19:49]} 10. Ne4 {[%emt 0:00:07]} Nbd7 {[%emt 0:09:05]} 11. Nxc5 {[%emt 0:01:34]} Nxc5 {[%emt 0:00:38]} 12. Bc2 {[%emt 0:00:08]} e5 {[%emt 0:01:41]} 13. Nb3 {[%emt 0:01:23]} Qc7 {[%emt 0:13:18]} 14. Bd2 {[%emt 0:00:55]} Rd8 {[%emt 0:21:14]} 15. Rc1 {[%emt 0:01:28]} Qd6 {[%emt 0:10:50]} 16. Ba5 {[%emt 0:11:12]} b6 {[%emt 0:05:53]} 17. Qxd6 {[%emt 0:17:20]} Rxd6 {[%emt 0:00:07]} 18. Bc3 {[%emt 0:04:04]} Nd3 {[%emt 0:09:16]} 19. Rcd1 {[%emt 0:08:10]} e4 {[%emt 0:00:46]} 20. f3 {[%emt 0:09:42]} Nd5 {[%emt 0:00:27]} 21. Bd2 {[%emt 0:03:27]} Nxb2 {[%emt 0:01:28]} 22. Rb1 {[%emt 0:00:35]} Nc4 {[%emt 0:01:14]} 23. Bxe4 {[%emt 0:00:18]} Be6 {[%emt 0:02:41]} 24. Rfc1 {[%emt 0:02:06]} Nxd2 {[%emt 0:01:00]} 25. Nxd2 {[%emt 0:00:03]} f5 {[%emt 0:01:11]} 26. Nc4 {[%emt 0:00:21]} Rc6 {[%emt 0:02:39]} 27. Nxb6 {[%emt 0:07:01]} Rxb6 {[%emt 0:02:03]} 28. Bxd5 {[%emt 0:00:34]} Bxd5 {[%emt 0:01:42]} 29. Rxb6 {[%emt 0:00:03]} Bxa2 {[%emt 0:00:27]} 30. Rc7 {[%emt 0:00:06]} Bd5 {[%emt 0:01:26]} 31. Rd6 {[%emt 0:00:53]} Bb3 {[%emt 0:00:39]} 32. Rdd7 {[%emt 0:00:13]} Re8 {[%emt 0:00:33]} 33. Ra7 {[%emt 0:01:15]} Bc4 {[%emt 0:00:14]} 34. Rxg7+ {[%emt 0:00:13]} Kf8 {[%emt 0:00:06]} 35. Rxh7 {[%emt 0:00:06]} 1-0